Workbook

Sheet Sheet_Main
A1: اسم العميل (حوالات مسحوبه) | B1: الرقم القومي | C1: مكتب الإصدار | D1: منطقة الصرف | E1: جنسية الراسل | F1: المبلغ | G1: عدد الحوالات المسحوبه | H1: عمر الراسل | I1: نوع الراسل | K1: اسم العميل (حوالا ت مصروفة) | L1: الرقم القومي | M1: جنسية المرسل اليه | N1: المبلغ | O1: عدد الحوالات المصروفه | P1: مكتب الصرف | Q1: منطقة الإصدار | R1: عمر المرسل اليه | S1: نوع المرسل اليه
A2: lمحمد عبدالفتاح محمد عطيه | B2: 28212302700292 | C2: الضبعه | D2: قنا | E2: مصري | F2: 1000 | G2: 1 | H2: =IF(TRIM(B2)="", "", IF(AND(ISNUMBER(B2*1),LEN(B2)=14), IF(AND(MID(B2,4,2)+0>=1,MID(B2,4,2)+0<=12), YEAR(TODAY()) - IF(LEFT(B2,1)="2",1900+MID(B2,2,2),IF(LEFT(B2,1)="3",2000+MID(B2,2,2),"")), "غير محدد" ), "غير محدد" ) ) -> 43 | I2: =IF(TRIM(B2)="", "", IF(AND(ISNUMBER(B2*1),LEN(B2)=14), IF(ISODD(MID(B2,13,1)+0), "ذكر", "أنثى"), "غير محدد" ) ) -> ذكر | K2: . سامي خليل خليل | L2: 27810191500893 | M2: مصري | N2: 1000 | O2: 2 | P2: العلمين | Q2: شرق القاهره | R2: =IF(TRIM(L2)="", "", IF(AND(ISNUMBER(L2*1),LEN(L2)=14), IF(AND(MID(L2,4,2)+0>=1,MID(L2,4,2)+0<=12), YEAR(TODAY()) - IF(LEFT(L2,1)="2",1900+MID(L2,2,2),IF(LEFT(L2,1)="3",2000+MID(L2,2,2),"")), "غير محدد" ), "غير محدد" ) ) -> 47 | S2: =IF(TRIM(L2)="", "", IF(AND(ISNUMBER(L2*1),LEN(L2)=14), IF(ISODD(MID(L2,13,1)+0), "ذكر", "أنثى"), "غير محدد" ) ) -> ذكر | AL2: =IF(B2="", "", SUMIF(B:B, B2, F:F)) -> 1000
A3: marat gasnbekob . . . | B3: 550208016 | C3: علم الروم | D3: الفيوم | E3: روسي | F3: 29671 | G3: 2 | H3: غير محدد | I3: غير محدد | K3: . سامي خليل خليل | L3: 27810191500893 | M3: مصري | N3: 500 | O3: 1 | P3: مكتب بريد متنقل 3 مطروح | Q3: شرق القاهره | R3: 47 | S3: ذكر | AL3: 69205.75
A4: marat gasnbekob . . . | B4: 550208016 | C4: منفذ الخدمات البريديه مطروح 1 | D4: الفيوم | E4: روسي | F4: 39534.75 | G4: 2 | H4: غير محدد | I4: غير محدد | K4: . محمد ناصر محمود | L4: 30805111402291 | M4: مصري | N4: 6900 | O4: 1 | P4: الضبعه | Q4: الجيزه | R4: 17 | S4: ذكر | AL4: 69205.75
A5: ا حمد محمد حسن منصو ر حجا زي | B5: 29501011528714 | C5: العلمين | D5: مرسي مطروح | E5: مصري | F5: 2200 | G5: 2 | H5: 30 | I5: ذكر | K5: lمحمد عبدالفتاح محمد عطيه | L5: 28212302700292 | M5: مصري | N5: 2706 | O5: 1 | P5: الضبعه | Q5: جنوب القاهره | R5: 43 | S5: ذكر | AL5: 2200
A6: ابانوب الفي بشاي عويضه | B6: 28904041700434 | C6: مرسي مطروح الرئيسي | D6: القليوبيه | E6: مصري | F6: 2000 | G6: 2 | H6: 36 | I6: ذكر | K6: ابانوب صموئيل عزيز عبيد | L6: 30009102603577 | M6: مصري | N6: 6228.25 | O6: 1 | P6: مكتب بريد متنقل 4 مطروح | Q6: شرق القاهره | R6: 25 | S6: ذكر | AL6: 5000
A7: ابانوب الفي بشاي عويضه | B7: 28904041700434 | C7: مرسي مطروح الرئيسي | D7: جنوب المنوفيه | E7: مصري | F7: 1000 | G7: 1 | H7: 36 | I7: ذكر | K7: ابانوب موريس حبيب تدرس | L7: 29310052201312 | M7: مصري | N7: 255 | O7: 1 | P7: مكتب بريد متنقل 4 مطروح | Q7: جنوب المنوفيه | R7: 32 | S7: ذكر | AL7: 5000
A8: ابانوب الفي بشاي عويضه | B8: 28904041700434 | C8: مكتب بريد الفتح | D8: القليوبيه | E8: مصري | F8: 2000 | G8: 2 | H8: 36 | I8: ذكر | K8: ابانوب نبيل عياد ناشد | L8: 29304182202213 | M8: مصري | N8: 3686 | O8: 1 | P8: العلمين | Q8: شمال اكتوبر | R8: 32 | S8: ذكر | AL8: 5000
A9: ابانوب سامح فوزي بشاي | B9: 30203043300116 | C9: الريفيه | D9: اسيوط | E9: مصري | F9: 5000 | G9: 1 | H9: 23 | I9: ذكر | K9: ابتسام احمد علي احمد | L9: 29109012602261 | M9: مصري | N9: 45000 | O9: 1 | P9: مرسي مطروح الرئيسي | Q9: سوهاج | R9: 34 | S9: أنثى | AL9: 24000
A10: ابانوب سامح فوزي بشاي | B10: 30203043300116 | C10: مطروح ثاني | D10: اسيوط | E10: مصري | F10: 7000 | G10: 2 | H10: 23 | I10: ذكر | K10: ابتسام احمد علي احمد | L10: 29109012602261 | M10: مصري | N10: 29970.25 | O10: 1 | P10: مكتب بريد الفتح | Q10: سوهاج | R10: 34 | S10: أنثى | AL10: 24000
A11: ابانوب سامح فوزي بشاي | B11: 30203043300116 | C11: مطروح فرعي | D11: اسيوط | E11: مصري | F11: 12000 | G11: 2 | H11: 23 | I11: ذكر | K11: ابتسام احمد علي احمد | L11: 29109012602261 | M11: مصري | N11: 59600 | O11: 1 | P11: منفذ الخدمات البريديه مطروح 1 | Q11: سوهاج | R11: 34 | S11: أنثى | AL11: 24000
A12: ابانوب فوزي فايز نصر | B12: 29707072605514 | C12: مطروح فرعي | D12: سوهاج | E12: مصري | F12: 21000 | G12: 1 | H12: 28 | I12: ذكر | K12: ابتسام السيد محمد رزق | L12: 29704221801225 | M12: مصري | N12: 2000 | O12: 1 | P12: متنقل مطروح 1 | Q12: البحيره | R12: 28 | S12: أنثى | AL12: 21000
A13: ابانوب موسي فهيم عبدالمسيح | B13: 29408282600275 | C13: مرسي مطروح الرئيسي | D13: سوهاج | E13: مصري | F13: 20373.25 | G13: 1 | H13: 31 | I13: ذكر | K13: ابتسام السيد محمد رزق | L13: 29704221801225 | M13: مصري | N13: 8000 | O13: 4 | P13: منفذ الخدمات البريديه مطروح 1 | Q13: البحيره | R13: 28 | S13: أنثى | AL13: 20373.25
A14: ابانوب نصار ابراهيم رزق | B14: 29411212501459 | C14: سيدي عبدالرحمن | D14: اسيوط | E14: مصري | F14: 17907 | G14: 2 | H14: 31 | I14: ذكر | K14: ابتسام السيد محمد سليمان | L14: 28607202601763 | M14: مصري | N14: 3000 | O14: 2 | P14: مطروح فرعي | Q14: وسط وشمال القاهره | R14: 39 | S14: أنثى | AL14: 17907
A15: ابتسام عزو عزروم / | B15: n014017846 | C15: مرسي مطروح الرئيسي | D15: الجيزه | E15: سوري | F15: 150 | G15: 2 | H15: غير محدد | I15: غير محدد | K15: ابتسام حجازي احمد عبدالخالق | L15: 28209091501165 | M15: مصري | N15: 5940 | O15: 1 | P15: الضبعه | Q15: كفر الشيخ | R15: 43 | S15: أنثى | AL15: 875
A16: ابتسام عزو عزروم / | B16: n014017846 | C16: مرسي مطروح الرئيسي | D16: القليوبيه | E16: سوري | F16: 200 | G16: 2 | H16: غير محدد | I16: غير محدد | K16: ابتسام ربيع الحسيني زهران | L16: 27111241602484 | M16: مصري | N16: 4000 | O16: 2 | P16: مكتب بريد مرور مطروح | Q16: المحله الكبري | R16: 54 | S16: أنثى | AL16: 875
A17: ابتسام عزو عزروم / | B17: n014017846 | C17: مكتب بريد الفتح | D17: الجيزه | E17: سوري | F17: 225 | G17: 3 | H17: غير محدد | I17: غير محدد | K17: ابتسام ظريف محمد علي | L17: 28401101504824 | M17: مصري | N17: 500 | O17: 1 | P17: القصر | Q17: وسط وشمال القاهره | R17: 41 | S17: أنثى | AL17: 875
A18: ابتسام عزو عزروم / | B18: n014017846 | C18: مكتب بريد الفتح | D18: القليوبيه | E18: سوري | F18: 300 | G18: 3 | H18: غير محدد | I18: غير محدد | K18: ابتسام ظريف محمد علي | L18: 28401101504824 | M18: مصري | N18: 1100 | O18: 3 | P18: متنقل مطروح 1 | Q18: وسط وشمال القاهره | R18: 41 | S18: أنثى | AL18: 875
A19: ابتسام فكري محمد قاسم | B19: 28306081100087 | C19: اغورمي سيوا | D19: دمياط | E19: مصري | F19: 1300 | G19: 1 | H19: 42 | I19: أنثى | K19: ابتسام ظريف محمد علي | L19: 28401101504824 | M19: مصري | N19: 300 | O19: 1 | P19: مرسي مطروح الرئيسي | Q19: وسط وشمال القاهره | R19: 41 | S19: أنثى | AL19: 1300
A20: ابتسام محمد سيد علي | B20: 27509022501188 | C20: حي الشروق | D20: كفر الشيخ | E20: مصري | F20: 5757 | G20: 2 | H20: 50 | I20: أنثى | K20: ابتسام محمد السيد عمر | L20: 28712203300081 | M20: مصري | N20: 4000 | O20: 1 | P20: الريفيه | Q20: القليوبيه | R20: 38 | S20: أنثى | AL20: 16648
A21: ابتسام محمد سيد علي | B21: 27509022501188 | C21: مكتب بريد الفتح | D21: كفر الشيخ | E21: مصري | F21: 10891 | G21: 2 | H21: 50 | I21: أنثى | K21: ابتسام محمد عبيد السلامي | L21: 26101231800424 | M21: مصري | N21: 2250 | O21: 2 | P21: سيدي براني | Q21: البحيره | R21: 64 | S21: =IF(TRIM(L21)="", "",IF(AND(ISNUMBER(L21*1),LEN(L21)=14), IF(ISODD(MID(L21,13,1)+0), "ذكر", "أنثى"), "غير محدد" ) ) -> أنثى | AL21: 16648
A22: ابتسام محمد عبدالمعطي البربري | B22: 27704251701945 | C22: مكتب بريد الفتح | D22: شمال المنوفيه | E22: مصري | F22: 3500 | G22: 1 | H22: 48 | I22: أنثى | K22: ابتسام محمود عبدالعال محمد | L22: 28102173300363 | M22: مصري | N22: 1500 | O22: 1 | P22: مطروح فرعي | Q22: الاسكندريه | R22: 44 | S22: أنثى | AL22: 3500
A23: ابرام ايمن حكيم صالح | B23: 29511132200215 | C23: القصر | D23: اسوان | E23: مصري | F23: 5649.35 | G23: 1 | H23: 30 | I23: ذكر | K23: ابتسام محمود عبدالعال محمد | L23: 28102173300363 | M23: مصري | N23: 8500 | O23: 6 | P23: مكتب بريد الفتح | Q23: الاسكندريه | R23: 44 | S23: أنثى | AL23: 25320.45
A24: ابرام ايمن حكيم صالح | B24: 29511132200215 | C24: متنقل مطروح 1 | D24: الاقصر | E24: مصري | F24: 6779.4 | G24: 2 | H24: 30 | I24: ذكر | K24: ابتسام محمود عبدالعال محمد | L24: 28102173300363 | M24: مصري | N24: 1500 | O24: 1 | P24: منفذ الخدمات البريديه مطروح 1 | Q24: الاسكندريه | R24: 44 | S24: أنثى | AL24: 25320.45
A25: ابرام ايمن حكيم صالح | B25: 29511132200215 | C25: مرسي مطروح الرئيسي | D25: الاقصر | E25: مصري | F25: 12891.7 | G25: 2 | H25: 30 | I25: ذكر | K25: ابتسام محمود محمد فايد | L25: 26912141700267 | M25: مصري | N25: 3000 | O25: 1 | P25: حي الشروق | Q25: شمال المنوفيه | R25: 56 | S25: أنثى | AL25: 25320.45
A26: ابرام عيد جندي ابراهيم | B26: 29705252501251 | C26: مكتب بريد متنقل 3 مطروح | D26: اسيوط | E26: مصري | F26: 5000 | G26: 1 | H26: 28 | I26: ذكر | K26: ابتسام محمود محمد فايد | L26: 26912141700267 | M26: مصري | N26: 4000 | O26: 1 | P26: مكتب بريد الفتح | Q26: شمال المنوفيه | R26: 56 | S26: أنثى | AL26: 5000
A27: ابرام فرحات يونس وهيب | B27: 30110102401837 | C27: راس الحكمه | D27: المنيا | E27: مصري | F27: 7418.25 | G27: 1 | H27: 24 | I27: ذكر | K27: ابتهال محمد سعودي حسن | L27: 30603013301124 | M27: مصري | N27: 3900 | O27: 1 | P27: مرسي مطروح الرئيسي | Q27: مرسي مطروح | R27: 19 | S27: أنثى | AL27: 9918.25
A28: ابرام فرحات يونس وهيب | B28: 30110102401837 | C28: راس الحكمه | D28: بني سويف | E28: مصري | F28: 2500 | G28: 1 | H28: 24 | I28: ذكر | K28: ابراهيم ابراهيم حسن بيومي | L28: 28701191804795 | M28: مصري | N28: 7417 | O28: 1 | P28: سيدي عبدالرحمن | Q28: شمال اكتوبر | R28: 38 | S28: ذكر | AL28: 9918.25
A29: ابرام ماجد رفعت يوسف | B29: 29902032400372 | C29: راس الحكمه | D29: المنيا | E29: مصري | F29: 5000 | G29: 1 | H29: 26 | I29: ذكر | K29: ابراهيم ابوبكر خليفه عبدالله | L29: 28505303300112 | M29: مصري | N29: 25000 | O29: 1 | P29: سيوه | Q29: البحيره | R29: 40 | S29: ذكر | AL29: 5000
A30: ابراهيم ابراهيم الدسوقي حسن الدلجموني | B30: 25803211600233 | C30: العلمين | D30: الغربيه | E30: مصري | F30: 2000 | G30: 1 | H30: 67 | I30: ذكر | K30: ابراهيم ابوبكر خليفه عبدالله | L30: 28505303300112 | M30: مصري | N30: 11000 | O30: 1 | P30: منفذ الخدمات البريديه مطروح 2 | Q30: البحيره | R30: 40 | S30: ذكر | AL30: 4500
A31: ابراهيم ابراهيم الدسوقي حسن الدلجموني | B31: 25803211600233 | C31: مكتب بريد متنقل 4 مطروح | D31: الغربيه | E31: مصري | F31: 2500 | G31: 1 | H31: 67 | I31: ذكر | K31: ابراهيم احمد ابراهيم سلامه | L31: 28208060200152 | M31: مصري | N31: 490 | O31: 1 | P31: جلال | Q31: الاسكندريه | R31: 43 | S31: ذكر | AL31: 4500
A32: ابراهيم ابوالعنين ابوالعنين زيد | B32: 26512131200438 | C32: مكتب بريد الفتح | D32: شمال الدقهليه | E32: مصري | F32: 3000 | G32: 1 | H32: 60 | I32: ذكر | K32: ابراهيم احمد الدرعان | L32: 555-22-23438 | M32: (فارغ) | N32: 3160 | O32: 1 | P32: متنقل مطروح 2 | Q32: التجزئة المالية | R32: غير محدد | S32: غير محدد | AL32: 3000
A33: ابراهيم ابوالعيون عبدالمجيد - دياب | B33: 28806012502117 | C33: مطروح فرعي | D33: اسيوط | E33: مصري | F33: 6000 | G33: 3 | H33: 37 | I33: ذكر | K33: ابراهيم احمد خالد عمر | L33: 28809193300099 | M33: مصري | N33: 2445 | O33: 3 | P33: منفذ الخدمات البريديه مطروح 2 | Q33: شمال اكتوبر | R33: 37 | S33: ذكر | AL33: 6000
A34: ابراهيم ابوالفضل عبداللطيف احمد | B34: 28301082601452 | C34: مرسي مطروح الرئيسي | D34: المنيا | E34: مصري | F34: 2000 | G34: 1 | H34: 42 | I34: ذكر | K34: ابراهيم احمد خضر رزق | L34: 26305311500272 | M34: مصري | N34: 9125 | O34: 1 | P34: راس الحكمه | Q34: شرق القاهره | R34: 62 | S34: ذكر | AL34: 2000
A35: ابراهيم ابوالمجد عبدالجليل عبدالماجد | B35: 29710313300095 | C35: مرسي مطروح الرئيسي | D35: الغربيه | E35: مصري | F35: 208750 | G35: 5 | H35: 28 | I35: ذكر | K35: ابراهيم احمد سعيد عبدالرازق | L35: 29705011811038 | M35: مصري | N35: 3195 | O35: 1 | P35: مكتب بريد متنقل 4 مطروح | Q35: جنوب القاهره | R35: 28 | S35: ذكر | AL35: 308379
A36: ابراهيم ابوالمجد عبدالجليل عبدالماجد | B36: 29710313300095 | C36: مرسي مطروح الرئيسي | D36: المنيا | E36: مصري | F36: 7506 | G36: 1 | H36: 28 | I36: ذكر | K36: ابراهيم احمد سند الغندور | L36: 26306091800497 | M36: مصري | N36: 40 | O36: 1 | P36: زاويه العوامه | Q36: برج العرب | R36: 62 | S36: ذكر | AL36: 308379
A37: ابراهيم ابوالمجد عبدالجليل عبدالماجد | B37: 29710313300095 | C37: مرسي مطروح الرئيسي | D37: شمال اكتوبر | E37: مصري | F37: 74420 | G37: 2 | H37: 28 | I37: ذكر | K37: ابراهيم احمد علي محمد | L37: 29110193300218 | M37: مصري | N37: 16710.25 | O37: 2 | P37: اغورمي سيوا | Q37: الجيزه | R37: 34 | S37: ذكر | AL37: 308379
A38: ابراهيم ابوالمجد عبدالجليل عبدالماجد | B38: 29710313300095 | C38: مرسي مطروح الرئيسي | D38: شمال الدقهليه | E38: مصري | F38: 17703 | G38: 2 | H38: 28 | I38: ذكر | K38: ابراهيم احمد علي محمد | L38: 29110193300218 | M38: مصري | N38: 20000 | O38: 1 | P38: اغورمي سيوا | Q38: المنيا | R38: 34 | S38: ذكر | AL38: 308379
A39: ابراهيم ابوالوفا احمد جاد | B39: 30003272700595 | C39: العلمين | D39: قنا | E39: مصري | F39: 10000 | G39: 1 | H39: 25 | I39: ذكر | K39: ابراهيم اسماعيل ابراهيم اسماعيل | L39: 30407261201191 | M39: مصري | N39: 21000 | O39: 1 | P39: سيدي براني | Q39: برج العرب | R39: 21 | S39: ذكر | AL39: 19000
A40: ابراهيم ابوالوفا احمد جاد | B40: 30003272700595 | C40: مكتب بريد متنقل 4 مطروح | D40: قنا | E40: مصري | F40: 9000 | G40: 1 | H40: 25 | I40: ذكر | K40: ابراهيم السنوسي ابراهيم السنوسي | L40: 30201293300151 | M40: مصري | N40: 17210.25 | O40: 2 | P40: سيوه | Q40: وسط وشمال القاهره | R40: 23 | S40: ذكر | AL40: 19000
A41: ابراهيم احمد ابراهيم محمد | B41: 29301182700079 | C41: الضبعه | D41: الاقصر | E41: مصري | F41: 12000 | G41: 2 | H41: 32 | I41: ذكر | K41: ابراهيم السنوسي ابراهيم السنوسي | L41: 30201293300151 | M41: مصري | N41: 24483.75 | O41: 3 | P41: منفذ الخدمات البريديه مطروح 2 | Q41: وسط وشمال القاهره | R41: 23 | S41: ذكر | AL41: 12000
A42: ابراهيم احمد اسماعيل محمد | B42: 30007103300079 | C42: سيوه | D42: بني سويف | E42: مصري | F42: 40940 | G42: 1 | H42: 25 | I42: ذكر | K42: ابراهيم السيد احمد الحديدي | L42: 26007021500499 | M42: مصري | N42: 4500 | O42: 1 | P42: متنقل مطروح 5 | Q42: مرسي مطروح | R42: 65 | S42: ذكر | AL42: 40940
A43: ابراهيم احمد رزق عبدالحكيم | B43: 30006082502133 | C43: القصر | D43: اسيوط | E43: مصري | F43: 23000 | G43: 1 | H43: 25 | I43: ذكر | K43: ابراهيم السيد عباس السيد | L43: 28010261203457 | M43: مصري | N43: 3450 | O43: 1 | P43: الضبعه | Q43: شرق القاهره | R43: 45 | S43: ذكر | AL43: 23000
F46: =F41+F25+F24 -> 31671.1 | N46: =N31+N24+N23+N22 -> 11990

Sheet Age Grouping
A1: بيان احصائي عن أعمار العملاء بمنطقة - قطاع خلال الفترة من و حتى
A3: الحوالات المصدرة
A4: بيان التعاملات | B4: عدد العمليات | C4: نسبة العمليات | D4: عدد عملاء | E4: نسبة العملاء | F4: إجمالي المبالغ | G4: نسبة المبالغ
A5: Above 60 years | B5: 2 | C5: 0.02898550725 | D5: 1 | E5: 0.04 | F5: 4500 | G5: 0.0069544608
A6: From 51 to 60 years | B6: 1 | C6: 0.01449275362 | D6: 1 | E6: 0.04 | F6: 3000 | G6: 0.0046363072
A7: From 36 to 50 years | B7: 16 | C7: 0.231884058 | D7: 7 | E7: 0.28 | F7: 35448 | G7: 0.05478260587
A8: From 20 to 35 years | B8: 36 | C8: 0.5217391304 | D8: 14 | E8: 0.56 | F8: 534037.95 | G8: 0.8253213309
A9: Below 20 years | B9: 0 | C9: 0 | D9: 0 | E9: 0 | F9: 0 | G9: 0
A10: Not determined | B10: 14 | C10: 0.2028985507 | D10: 2 | E10: 0.08 | F10: 70080.75 | G10: 0.1083052953
A11: الاجمالى | B11: =IF(SUM(B5:B10)=0, "", SUM(B5:B10)) -> 69 | C11: =IFERROR(IF(OR(B11="", $B$21=""), "", B11/$B$21), "") -> 0.5267175573 | D11: =SUM(D5:D10) -> 25 | E11: =IFERROR(IF(OR(D11="", $D$21=""), "", D11/$D$21), "") -> 0.4545454545 | F11: =SUM(F5:F10) -> 647066.7 | G11: =IFERROR(IF(OR(F11="", $F$21="", $F$21=0), "", F11/$F$21), "") -> 0.6308977681
A12: الحوالات المصروفة
A13: بيان التعاملات | B13: عدد العمليات | C13: نسبة العمليات | D13: عدد عملاء | E13: نسبة العملاء | F13: إجمالي المبالغ | G13: نسبة المبالغ
A14: Above 60 years | B14: 5 | C14: 0.08064516129 | D14: 4 | E14: 0.1333333333 | F14: 15915 | G14: 0.04204069746
A15: From 51 to 60 years | B15: 4 | C15: 0.06451612903 | D15: 2 | E15: 0.06666666667 | F15: 11000 | G15: 0.02905734665
A16: From 36 to 50 years | B16: 29 | C16: 0.4677419355 | D16: 12 | E16: 0.4 | F16: 80348 | G16: 0.2122454263
A17: From 20 to 35 years | B17: 21 | C17: 0.3387096774 | D17: 9 | E17: 0.3 | F17: 257338.75 | G17: 0.6797801151
A18: Below 20 years | B18: 2 | C18: 0.03225806452 | D18: 2 | E18: 0.06666666667 | F18: 10800 | G18: 0.02852903126
A19: Not determined | B19: 1 | C19: 0.01612903226 | D19: 1 | E19: 0.03333333333 | F19: 3160 | G19: 0.008347383221
A20: الاجمالى | B20: =IF(SUM(B14:B19)=0, "", SUM(B14:B19)) -> 62 | C20: =IFERROR(IF(OR(B20="", $B$21="", $B$21=0), "", B20/$B$21), "") -> 0.4732824427 | D20: =SUM(D14:D19) -> 30 | E20: =D20/D21 -> 0.5454545455 | F20: =SUM(F14:F19) -> 378561.75 | G20: =IFERROR(IF(OR(F20="", $F$21="", $F$21=0), "", F20/$F$21), "") -> 0.3691022319
A21: الإجمالى العام | B21: =IF(N(B11) + N(B20) = 0, "", N(B11) + N(B20)) -> 131 | C21: =IF(N(C11) + N(C20) = 0, "", N(C11) + N(C20)) -> 1 | D21: =D11+D20 -> 55 | E21: =E11+E20 -> 1 | F21: =F11+F20 -> 1025628.45 | G21: =G11+G20 -> 1

Sheet List of Suspected Names
A1: كشف الاشتباهات بمنطقة - قطاع خلال الفترة من وحتي
A2: الرقم القومي | B2: أسم العميل | C2: السن | D2: المصدرة | F2: المصروفة | H2: اجمالي المبلغ | I2: اجمالي العدد
D3: العدد | E3: المبلغ | F3: العدد | G3: المبلغ
A4: 29710313300095 | B4: ابراهيم ابوالمجد عبدالجليل عبدالماجد | C4: 28 | D4: 10 | E4: 308379 | F4: 0 | G4: 0 | H4: 10 | I4: 308379
A5: 29306113300052 | B5: ابراهيم حامد سعيد جبريل | C5: 32 | D5: 44 | E5: 538457.5 | F5: 0 | G5: 0 | H5: 44 | I5: 538457.5
A6: 30009201704512 | B6: ابراهيم مصطفي ابراهيم عبدالحليم | C6: 25 | D6: 63 | E6: 130387.5 | F6: 0 | G6: 0 | H6: 63 | I6: 130387.5
A7: 28012082602791 | B7: احمد السيد احمد الحمراوي | C7: 45 | D7: 188 | E7: 144800 | F7: 0 | G7: 0 | H7: 188 | I7: 144800
A8: 29605011905071 | B8: احمد شوقي احمد الشافعي | C8: 29 | D8: 2 | E8: 69000 | F8: 20 | G8: 990603.5 | H8: 22 | I8: 1059603.5
A9: 28901141601311 | B9: احمد صبري يحي عباس | C9: 36 | D9: 67 | E9: 221300 | F9: 0 | G9: 0 | H9: 67 | I9: 221300
A10: 29401012726078 | B10: احمد عبدالحكيم توفيق برعي | C10: 31 | D10: 3 | E10: 150000 | F10: 5 | G10: 203000 | H10: 8 | I10: 353000
A11: 29705261200816 | B11: احمد ماهر سعد حسن عبدالمنعم | C11: 28 | D11: 5 | E11: 62070 | F11: 43 | G11: 2024135 | H11: 48 | I11: 2086205
A12: 26803030200539 | B12: احمد محمد فتحي عبدالرازق | C12: 57 | D12: 10 | E12: 298600 | F12: 12 | G12: 430100 | H12: 22 | I12: 728700
A13: 29510203300074 | B13: احمد ونيس هليل ونيس | C13: 30 | D13: 71 | E13: 1162841.25 | F13: 0 | G13: 0 | H13: 71 | I13: 1162841.25
A14: 29602071800597 | B14: اسماعيل رمضان عبدالفتاح عبدالعاطي | C14: 29 | D14: 61 | E14: 371734 | F14: 0 | G14: 0 | H14: 61 | I14: 371734
A15: 30207110200534 | B15: السيد جابر عبدالعال محمد سالم | C15: 23 | D15: 1 | E15: 4000 | F15: 350 | G15: 233208.25 | H15: 351 | I15: 237208.25
A16: 14863 | B16: الماسه لخدمات الامن والحراسه | C16: غير محدد | D16: 1095 | E16: 4482824 | F16: 0 | G16: 0 | H16: 1095 | I16: 4482824
A17: 26503013300054 | B17: انور مفتاح عبدالسلام محمود | C17: 60 | D17: 1374 | E17: 17590967.5 | F17: 0 | G17: 0 | H17: 1374 | I17: 17590967.5
A18: 30606293300712 | B18: باسم عبدالله عطيوه مجيد ابوخزيم | C18: 19 | D18: 9 | E18: 327907.75 | F18: 0 | G18: 0 | H18: 9 | I18: 327907.75
A19: 30606203300751 | B19: جاب الله عبدالله عبدالجواد ونيس | C19: 19 | D19: 21 | E19: 431370.75 | F19: 0 | G19: 0 | H19: 21 | I19: 431370.75
A20: 27602063300111 | B20: جالي عدلان عبدالمالك زعلوك | C20: 49 | D20: 25 | E20: 453842 | F20: 0 | G20: 0 | H20: 25 | I20: 453842
A21: 28210181601019 | B21: جمعه عبدالعزيز محمد البربري | C21: 43 | D21: 27 | E21: 991488.75 | F21: 0 | G21: 0 | H21: 27 | I21: 991488.75
A22: 26612123300037 | B22: جمعه ميكائيل مراجع ادم | C22: 59 | D22: 9 | E22: 307475 | F22: 0 | G22: 0 | H22: 9 | I22: 307475
A23: 27211011403053 | B23: حسام حسان سيد احمد جاد الله | C23: 53 | D23: 6 | E23: 360000 | F23: 17 | G23: 870000 | H23: 23 | I23: 1230000
A24: 29401302601139 | B24: حسن طه حسين اسماعيل | C24: 31 | D24: 40 | E24: 38822.75 | F24: 331 | G24: 221464 | H24: 371 | I24: 260286.75
A25: 29103123300133 | B25: خليل سليمان قاسم محمد | C25: 34 | D25: 6 | E25: 250564 | F25: 0 | G25: 0 | H25: 6 | I25: 250564
A26: 29302053300192 | B26: رزق عبدالكريم رزق براني | C26: 32 | D26: 11 | E26: 325586.5 | F26: 0 | G26: 0 | H26: 11 | I26: 325586.5
A27: 26003050400457 | B27: سعيد محمد احمد احمد درباله | C27: 65 | D27: 2 | E27: 4660 | F27: 8 | G27: 308522 | H27: 10 | I27: 313182
A28: 28411182401515 | B28: سيد صبره عبدالعليم موسي | C28: 41 | D28: 7 | E28: 272008 | F28: 0 | G28: 0 | H28: 7 | I28: 272008
A29: 25110161701313 | B29: سيف الاسلام سعيد عبدالعال الصباغ | C29: 74 | D29: 141 | E29: 583000 | F29: 0 | G29: 0 | H29: 141 | I29: 583000
A30: 1115595795 | B30: شركه طيبه للمقاولات العموميه | C30: غير محدد | D30: 687 | E30: 2877552 | F30: 0 | G30: 0 | H30: 687 | I30: 2877552
A31: 29908223300155 | B31: شريف جمعه دوامه عبدالله | C31: 26 | D31: 12 | E31: 265526.75 | F31: 0 | G31: 0 | H31: 12 | I31: 265526.75
A32: 28405123300136 | B32: شعبان كريم عبدالمولي عبدالرازق | C32: 41 | D32: 32 | E32: 410515 | F32: 0 | G32: 0 | H32: 32 | I32: 410515
A33: 29310013300931 | B33: شعيب عبدالقوي صالح خالد | C33: 32 | D33: 8 | E33: 430890 | F33: 0 | G33: 0 | H33: 8 | I33: 430890
A34: 29005070201179 | B34: عبدالحميد محمد ابوالعدب عبدالحميد محمد نوار | C34: 35 | D34: 73 | E34: 346310 | F34: 0 | G34: 0 | H34: 73 | I34: 346310
A35: 29303163300259 | B35: عبدالرحمن خميس عبدالجواد ونيس | C35: 32 | D35: 70 | E35: 979837 | F35: 0 | G35: 0 | H35: 70 | I35: 979837
A36: 29610263300132 | B36: عبدالرحيم محمد قاسم هارون | C36: 29 | D36: 1576 | E36: 22385995.8 | F36: 0 | G36: 0 | H36: 1576 | I36: 22385995.8
A37: 29708013300714 | B37: عبدالفتاح احمد محمد قاسم | C37: 28 | D37: 64 | E37: 1266438.75 | F37: 0 | G37: 0 | H37: 64 | I37: 1266438.75
A38: 26509203300032 | B38: عبدالقادر احمد عبدالكريم جاد الله | C38: 60 | D38: 7 | E38: 342933 | F38: 0 | G38: 0 | H38: 7 | I38: 342933
A39: 28909301610291 | B39: عبدالقادر عبدالوهاب عبدالقادر ابوعيد | C39: 36 | D39: 6 | E39: 33764 | F39: 27 | G39: 1465000 | H39: 33 | I39: 1498764
A40: 28208233300051 | B40: عبدالقادر مستور مبري عبدربه | C40: 43 | D40: 1218 | E40: 21670160.75 | F40: 0 | G40: 0 | H40: 1218 | I40: 21670160.75
A41: 28507063300252 | B41: عبدالكريم سليمان عوض موسي | C41: 40 | D41: 2179 | E41: 30478257 | F41: 0 | G41: 0 | H41: 2179 | I41: 30478257
A42: 29606053300051 | B42: عبدالله علي محمد علي خلف | C42: 29 | D42: 6 | E42: 297764.5 | F42: 0 | G42: 0 | H42: 6 | I42: 297764.5
A43: 30210223300315 | B43: عبدالله محمد صابر هارون | C43: 23 | D43: 264 | E43: 4934590.25 | F43: 0 | G43: 0 | H43: 264 | I43: 4934590.25
A44: 29204103300197 | B44: عز ادم ميكائيل مهدي | C44: 33 | D44: 9 | E44: 367359 | F44: 0 | G44: 0 | H44: 9 | I44: 367359
A45: 26108063300041 | B45: عزه فتحي سعيد رمضان محمد الحويطي | C45: 64 | D45: 29 | E45: 1469308 | F45: 0 | G45: 0 | H45: 29 | I45: 1469308
A46: 28207063300259 | B46: عقيله سعيد جبريل محمد | C46: 43 | D46: 165 | E46: 2783383.25 | F46: 0 | G46: 0 | H46: 165 | I46: 2783383.25
A47: 30504243300072 | B47: علي حسين كريم شعيب | C47: 20 | D47: 229 | E47: 4800454.75 | F47: 0 | G47: 0 | H47: 229 | I47: 4800454.75
A48: 29006053300453 | B48: عماد حسن معيفن عوض | C48: 35 | D48: 19 | E48: 446020.5 | F48: 0 | G48: 0 | H48: 19 | I48: 446020.5
A49: 30706063300076 | B49: فريد عبدربه عبدالله عبدالجواد ونيس | C49: 18 | D49: 539 | E49: 8347853 | F49: 0 | G49: 0 | H49: 539 | I49: 8347853
A50: 29109273300113 | B50: فوزي غيث هبه .محمد | C50: 34 | D50: 6 | E50: 277843.5 | F50: 0 | G50: 0 | H50: 6 | I50: 277843.5
A51: 29311062603296 | B51: كريم محمد شوقي محمد | C51: 32 | D51: 54 | E51: 105967 | F51: 0 | G51: 0 | H51: 54 | I51: 105967
A52: 29608101703751 | B52: كريم محمد عبدالجواد سيف الدين | C52: 29 | D52: 76 | E52: 623969 | F52: 0 | G52: 0 | H52: 76 | I52: 623969
A53: 29605283300232 | B53: محمد احمد عبدالحكيم محمد | C53: 29 | D53: 5 | E53: 265000 | F53: 0 | G53: 0 | H53: 5 | I53: 265000
A54: 25712292600393 | B54: محمد السيد محمد احمد | C54: 68 | D54: 23 | E54: 492981.5 | F54: 0 | G54: 0 | H54: 23 | I54: 492981.5
A55: 29105012203999 | B55: محمد حسني ابراهيم عبداللطيف | C55: 34 | D55: 5 | E55: 250000 | F55: 19 | G55: 1010000 | H55: 24 | I55: 1260000
A56: 29803203300071 | B56: محمد رضا صبحي الجوهري | C56: 27 | D56: 57 | E56: 47719 | F56: 458 | G56: 298185 | H56: 515 | I56: 345904
A57: 30307030203111 | B57: محمد عاطف فؤاد محمد | C57: 22 | D57: 7 | E57: 3445 | F57: 243 | G57: 158850 | H57: 250 | I57: 162295
A58: 29903131600177 | B58: محمد عبدالرؤف محي الدين القصبي | C58: 26 | D58: 236 | E58: 844723.5 | F58: 0 | G58: 0 | H58: 236 | I58: 844723.5
A59: 29703103300053 | B59: محمد عبدالقادر عوض عبداجواد | C59: 28 | D59: 58 | E59: 984562.5 | F59: 0 | G59: 0 | H59: 58 | I59: 984562.5
A60: 29607101601219 | B60: محمد مجد الدين عبدالمهيمن امين | C60: 29 | D60: 716 | E60: 647018.25 | F60: 0 | G60: 0 | H60: 716 | I60: 647018.25
A61: 28107280103858 | B61: محمد محسن امام محمد | C61: 44 | D61: 50 | E61: 429108.5 | F61: 31 | G61: 1495000 | H61: 81 | I61: 1924108.5
A62: 29403272300557 | B62: محمد محمود عبدالكريم ادريس | C62: 31 | D62: 6 | E62: 280000 | F62: 1 | G62: 5445.5 | H62: 7 | I62: 285445.5
A63: 29803042501594 | B63: محمد ممدوح حسن علي | C63: 27 | D63: 9 | E63: 358780 | F63: 0 | G63: 0 | H63: 9 | I63: 358780
A64: 30509013300474 | B64: محمد يوسف حميده اسرافيل عبدالله | C64: 20 | D64: 1593 | E64: 22034092.75 | F64: 0 | G64: 0 | H64: 1593 | I64: 22034092.75
A65: 29805251602139 | B65: محمود فوزي حسن محمد | C65: 27 | D65: 92 | E65: 205937.25 | F65: 0 | G65: 0 | H65: 92 | I65: 205937.25
A66: 28306263300031 | B66: مرضي احمد محمود زايد | C66: 42 | D66: 9 | E66: 312368.25 | F66: 0 | G66: 0 | H66: 9 | I66: 312368.25
A67: 29401233300211 | B67: مصطفي سليمان عوض موسي | C67: 31 | D67: 6627 | E67: 96902551.75 | F67: 0 | G67: 0 | H67: 6627 | I67: 96902551.75
A68: 29607251600091 | B68: مصطفي مجدي رمضان رزق | C68: 29 | D68: 59 | E68: 1105313.75 | F68: 0 | G68: 0 | H68: 59 | I68: 1105313.75
A69: 28012013300155 | B69: موسي سعد عبدالجليل محمد | C69: 45 | D69: 5 | E69: 260672.5 | F69: 0 | G69: 0 | H69: 5 | I69: 260672.5
A70: 26812122700529 | B70: نعيمه ابوالوفا محمد ابوالحسن | C70: 57 | D70: 5 | E70: 248780 | F70: 2 | G70: 18100 | H70: 7 | I70: 266880
A71: 30906013300732 | B71: هاني هليل ونيس هليل ونيس | C71: 16 | D71: 23 | E71: 311098.5 | F71: 0 | G71: 0 | H71: 23 | I71: 311098.5
A72: 29905083300118 | B72: يادم موسي عبدالجواد ونيس | C72: 26 | D72: 236 | E72: 2912798.75 | F72: 0 | G72: 0 | H72: 236 | I72: 2912798.75
A73: 28611073300031 | B73: يحيي مصطفي لملوم بلالي | C73: 39 | D73: 1276 | E73: 18685947 | F73: 0 | G73: 0 | H73: 1276 | I73: 18685947
A74: 27502173300139 | B74: يوسف حميده اسرافيل دبنون عبدالنبي | C74: 50 | D74: 81 | E74: 1466217.75 | F74: 0 | G74: 0 | H74: 81 | I74: 1466217.75
A75: 29611172503533 | B75: احمد سيد فتحي عبدالعظيم | C75: 29 | D75: 0 | E75: 0 | F75: 20 | G75: 530725 | H75: 20 | I75: 530725
A76: 30007221701452 | B76: احمد صبري درويش راغب | C76: 25 | D76: 0 | E76: 0 | F76: 10 | G76: 540000 | H76: 10 | I76: 540000
A77: 28101112103151 | B77: احمد عجمي رمضان احمد | C77: 44 | D77: 0 | E77: 0 | F77: 17 | G77: 752000 | H77: 17 | I77: 752000
A78: 29309301408251 | B78: اسامه محمد احمد منصور | C78: 32 | D78: 0 | E78: 0 | F78: 51 | G78: 2650000 | H78: 51 | I78: 2650000
A79: 29901151400635 | B79: اسلام حمدي الصديق السيد | C79: 26 | D79: 0 | E79: 0 | F79: 13 | G79: 500000 | H79: 13 | I79: 500000
A80: 26809113300118 | B80: جاب الله قاسم عمر . ميهوب | C80: 57 | D80: 0 | E80: 0 | F80: 12 | G80: 272041.25 | H80: 12 | I80: 272041.25
A81: 28202031601913 | B81: حسام فؤاد عبدالفتاح ابراهيم | C81: 43 | D81: 0 | E81: 0 | F81: 6 | G81: 300600 | H81: 6 | I81: 300600
A82: 29001202506696 | B82: حسن مهران محمد سلطان | C82: 35 | D82: 0 | E82: 0 | F82: 6 | G82: 261580 | H82: 6 | I82: 261580
A83: 27411241500375 | B83: رافت احمد علي العشري | C83: 51 | D83: 0 | E83: 0 | F83: 7 | G83: 397200 | H83: 7 | I83: 397200
A84: 28804063300231 | B84: رجب ابراهيم بريك صالح | C84: 37 | D84: 0 | E84: 0 | F84: 6 | G84: 347751 | H84: 6 | I84: 347751
A85: 28809012501861 | B85: سعاد ابراهيم عبدالعزيز عبدالله | C85: 37 | D85: 0 | E85: 0 | F85: 8 | G85: 407369 | H85: 8 | I85: 407369
A86: 29212223300118 | B86: صابر مراجع صابربشير . | C86: 33 | D86: 0 | E86: 0 | F86: 6 | G86: 324000 | H86: 6 | I86: 324000
A87: 29512143300072 | B87: صادق عوام صادق محمد | C87: 30 | D87: 0 | E87: 0 | F87: 12 | G87: 473195 | H87: 12 | I87: 473195
A88: 29211093300238 | B88: صدام مجيد متموح سعيد | C88: 33 | D88: 0 | E88: 0 | F88: 40 | G88: 2116782.25 | H88: 40 | I88: 2116782.25
A89: 27208241401091 | B89: عادل سيد صالح الغمازي | C89: 53 | D89: 0 | E89: 0 | F89: 14 | G89: 262740 | H89: 14 | I89: 262740
A90: 28509012706893 | B90: عبدالرحمن عثمان احمد قاسم | C90: 40 | D90: 0 | E90: 0 | F90: 11 | G90: 540000 | H90: 11 | I90: 540000
A91: 28104073300113 | B91: عبدالعاطي رزق عبدالرازق محمد | C91: 44 | D91: 0 | E91: 0 | F91: 12 | G91: 318900 | H91: 12 | I91: 318900
A92: 28602133300151 | B92: عبدالله غيث اسماعيل ريزه | C92: 39 | D92: 0 | E92: 0 | F92: 15 | G92: 382212.8 | H92: 15 | I92: 382212.8
A93: 27205152701457 | B93: عبدالله محمد احمد عبدالباسط | C93: 53 | D93: 0 | E93: 0 | F93: 22 | G93: 1079200 | H93: 22 | I93: 1079200
A94: 26711012800179 | B94: عبدالناصر جمال صالح ادريس | C94: 58 | D94: 0 | E94: 0 | F94: 9 | G94: 450000 | H94: 9 | I94: 450000
A95: 27702143300095 | B95: عطيه محمد بشير ضيف الله | C95: 48 | D95: 0 | E95: 0 | F95: 24 | G95: 371689.5 | H95: 24 | I95: 371689.5
A96: 30204153300452 | B96: علي طربان علي سعيد | C96: 23 | D96: 0 | E96: 0 | F96: 9 | G96: 386946 | H96: 9 | I96: 386946
A97: 29612151500671 | B97: علي عبدالباعث علي سعد | C97: 29 | D97: 0 | E97: 0 | F97: 22 | G97: 691353 | H97: 22 | I97: 691353
A98: 29210251600116 | B98: عمرو عرفان يوسف عرفان | C98: 33 | D98: 0 | E98: 0 | F98: 5 | G98: 265000 | H98: 5 | I98: 265000
A99: 27905073300091 | B99: عنواني محمد مرضي قويسي | C99: 46 | D99: 0 | E99: 0 | F99: 8 | G99: 332195 | H99: 8 | I99: 332195
A100: 30508293300311 | B100: محمد احمد عبدالعال احمد | C100: 20 | D100: 0 | E100: 0 | F100: 6 | G100: 352800 | H100: 6 | I100: 352800
A101: 29501013300575 | B101: محمد بحر عبدالوكيل عبدالحليم | C101: 30 | D101: 0 | E101: 0 | F101: 23 | G101: 777620 | H101: 23 | I101: 777620
A102: 29410082603339 | B102: محمد جمال احمد قاسم | C102: 31 | D102: 0 | E102: 0 | F102: 7 | G102: 363000 | H102: 7 | I102: 363000
A103: 28712080102793 | B103: محمد صلاح اسماعيل بيومي | C103: 38 | D103: 0 | E103: 0 | F103: 7 | G103: 363280 | H103: 7 | I103: 363280
A104: 29808131900151 | B104: محمد طارق رضا جامع | C104: 27 | D104: 0 | E104: 0 | F104: 5 | G104: 265815 | H104: 5 | I104: 265815
A105: 27108032600635 | B105: محمد عبدالرحيم حسين عبدالرحيم | C105: 54 | D105: 0 | E105: 0 | F105: 7 | G105: 316780 | H105: 7 | I105: 316780
A106: 26710220100478 | B106: محمد عبدالمنعم محمد خالد فهمي | C106: 58 | D106: 0 | E106: 0 | F106: 30 | G106: 1343372 | H106: 30 | I106: 1343372
A107: 27302051400613 | B107: محمد وهبه محمد وهبه | C107: 52 | D107: 0 | E107: 0 | F107: 6 | G107: 348000 | H107: 6 | I107: 348000
A108: 28801011600695 | B108: محمود زكي شلبي علي | C108: 37 | D108: 0 | E108: 0 | F108: 94 | G108: 589811 | H108: 94 | I108: 589811
A109: 29101132100799 | B109: محمود عبده فضل حجازي | C109: 34 | D109: 0 | E109: 0 | F109: 15 | G109: 282064.5 | H109: 15 | I109: 282064.5
A110: 26205013300037 | B110: منصور رزوقه سعد حلابه | C110: 63 | D110: 0 | E110: 0 | F110: 10 | G110: 350000 | H110: 10 | I110: 350000
A111: 28003143300158 | B111: منصور محمد يوسف صالح | C111: 45 | D111: 0 | E111: 0 | F111: 7 | G111: 338930.25 | H111: 7 | I111: 338930.25
A112: 29909151300151 | B112: مينا سامي سعد وهبه عطاالله | C112: 26 | D112: 0 | E112: 0 | F112: 18 | G112: 920000 | H112: 18 | I112: 920000

Sheet Gender Male Female
A1: بيان احصائي عن نوع العملاء بمنطقة - قطاع خلال الفترة من و حتى
A3: الحوالات المصدرة
A4: بيان التعاملات | B4: عدد العمليات | C4: نسبة العمليات | D4: عدد عملاء | E4: نسبة العملاء | F4: إجمالي المبالغ | G4: نسبة المبالغ
A5: ذكر | B5: 32 | C5: 0.7619047619 | D5: 20 | E5: 0.8 | F5: 555537.95 | G5: 0.8585481991
A6: انثي | B6: 4 | C6: 0.09523809524 | D6: 3 | E6: 0.12 | F6: 21448 | G6: 0.03314650561
A7: غير محدد | B7: 6 | C7: 0.1428571429 | D7: 2 | E7: 0.08 | F7: 70080.75 | G7: 0.1083052953
A8: الاجمالى | B8: 42 | C8: 1 | D8: 25 | E8: 1 | F8: 647066.7 | G8: 1
A9: الحوالات المصروفة
A10: بيان التعاملات | B10: عدد العمليات | C10: نسبة العمليات | D10: عدد عملاء | E10: نسبة العملاء | F10: إجمالي المبالغ | G10: نسبة المبالغ
A11: ذكر | B11: 22 | C11: 0.5238095238 | D11: 18 | E11: 0.6 | F11: 187341.5 | G11: 0.4948769917
A12: انثي | B12: 19 | C12: 0.4523809524 | D12: 11 | E12: 0.3666666667 | F12: 188060.25 | G12: 0.4967756251
A13: غير محدد | B13: 1 | C13: 0.02380952381 | D13: 1 | E13: 0.03333333333 | F13: 3160 | G13: 0.008347383221
A14: الاجمالى | B14: 42 | C14: 1 | D14: 30 | E14: 1 | F14: 378561.75 | G14: 1
A15: الإجمالى العام | B15: 84 | C15: 1 | D15: 55 | E15: 1 | F15: 1025628.45 | G15: 1

Sheet Quality
C4: بيان بجوده التعاملات للحوالات الفورية عن منطقة - قطاع خلال الفترة من و حتي
C5: إجمالي عدد العمليات المصدرة للمنطقة | D5: إجمالي المبالغ للمنطقة | E5: الحوالات المصدرة الغير موضح الغرض من ارسال الحوالة
E6: عدد العمليات | F6: النسبة | G6: إجمالي المبلغ | H6: النسبة
F7: =E7/C7 ->  | H7: =G7/D7 -> 
I11: الحوالات المصدرة الغير موضح رقم هاتف الراسل او المرسل اليه
C12: بيان بجوده التعاملات للحوالات الفورية عن منطقة - قطاع خلال الفترة من و حتى | L12: النسبة
C13: إجمالي عدد العمليات المصدرة للمنطقة | D13: إجمالي المبالغ للمنطقة | E13: الحوالات المصدرة غير مسجل رقم الهاتف للراسل و المرسل اليه
E14: عدد العمليات | F14: النسبة | G14: إجمالي المبلغ | H14: النسبة
F15: =E15/C15 ->  | H15: =G15/D15 -> 

Sheet Transfers Report From-To Region
A1: منطقة الصرف | B1: عدد الحوالات المسحوبة | C1: مبلغ الحوالات المسحوبة | D1: عدد الحوالات المصروفة | E1: مبلغ الحوالات المصروفة
A2: اسوان | B2: 1 | C2: 5649.35 | D2: 0 | E2: 0
A3: اسيوط | B3: 12 | C3: 75907 | D3: 0 | E3: 0
A4: الاسكندريه | B4: 0 | C4: 0 | D4: 9 | E4: 11990
A5: الاقصر | B5: 6 | C5: 31671.1 | D5: 0 | E5: 0
A6: البحيره | B6: 0 | C6: 0 | D6: 9 | E6: 48250
A7: التجزئة المالية | B7: 0 | C7: 0 | D7: 1 | E7: 3160
A8: الجيزه | B8: 5 | C8: 375 | D8: 3 | E8: 23610.25
A9: الغربيه | B9: 7 | C9: 213250 | D9: 0 | E9: 0
A10: الفيوم | B10: 4 | C10: 69205.75 | D10: 0 | E10: 0
A11: القليوبيه | B11: 9 | C11: 4500 | D11: 1 | E11: 4000
A12: المحله الكبري | B12: 0 | C12: 0 | D12: 2 | E12: 4000
A13: المنيا | B13: 4 | C13: 21924.25 | D13: 1 | E13: 20000
A14: برج العرب | B14: 0 | C14: 0 | D14: 2 | E14: 21040
A15: بني سويف | B15: 2 | C15: 43440 | D15: 0 | E15: 0
A16: جنوب القاهره | B16: 0 | C16: 0 | D16: 2 | E16: 5901
A17: جنوب المنوفيه | B17: 1 | C17: 1000 | D17: 1 | E17: 255
A18: دمياط | B18: 1 | C18: 1300 | D18: 0 | E18: 0
A19: سوهاج | B19: 2 | C19: 41373.25 | D19: 3 | E19: 134570.25
A20: شرق القاهره | B20: 0 | C20: 0 | D20: 6 | E20: 20303.25
A21: شمال اكتوبر | B21: 2 | C21: 74420 | D21: 5 | E21: 13548
A22: شمال الدقهليه | B22: 3 | C22: 20703 | D22: 0 | E22: 0
A23: شمال المنوفيه | B23: 1 | C23: 3500 | D23: 2 | E23: 7000
A24: قنا | B24: 3 | C24: 20000 | D24: 0 | E24: 0
A25: كفر الشيخ | B25: 4 | C25: 16648 | D25: 1 | E25: 5940
A26: مرسي مطروح | B26: 2 | C26: 2200 | D26: 2 | E26: 8400
A27: وسط وشمال القاهره | B27: 0 | C27: 0 | D27: 12 | E27: 46594
